fUSD/lending_fUSD_20241223
["ID","MTS","AMOUNT","RATE_DAILY","PERIOD"]
[346418408,1734954640671,-2500.0,0.000187,2]
[346418409,1734954640681,-14232.63996319,0.000187,2]
[346418410,1734954640690,-150.0,0.00018703,2]
[346418411,1734954640699,-14232.63996313,0.00018722,2]
[346418412,1734954640709,-150.0,0.00018727,2]
[346418413,1734954640719,-1000.0,0.00018744,2]
[346418414,1734954640728,-14232.63996313,0.00018744,2]
[346418415,1734954640738,-14232.63996313,0.00018767,2]
[346418416,1734954640747,-178.68471891,0.00018769,2]
[346418417,1734954640757,-14232.63996313,0.00018789,2]
[346418418,1734954640766,-152.07639963,0.00018795,2]
[346418419,1734954640775,-202.76853285,0.00018795,2]
[346418420,1734954640785,-152.07639964,0.00018795,2]
[346418421,1734954640794,-3805.5946,0.000188,2]
[346418422,1734954640803,-76192.8963,0.000188,2]
[346418423,1734954640813,-5000.0,0.000188,2]
[346418424,1734954640822,-178.68471888,0.00018802,2]
[346418425,1734954640831,-14232.63996313,0.00018811,2]
[346418426,1734954640841,-415.5,0.00018812,7]
[346418427,1734954640850,-14232.63996313,0.00018833,2]
[346418428,1734954640859,-178.68471888,0.00018835,2]
[346418429,1734954640869,-200.4,0.00018838,2]
[346418430,1734954640878,-150.0,0.00018846,2]
[346418431,1734954640888,-150.0,0.0001885,2]
[346418432,1734954640897,-14232.63996313,0.00018856,2]
[346418433,1734954640907,-178.68471888,0.00018867,2]
[346418434,1734954640916,-182.482872,0.00018869,2]
[346418435,1734954640926,-173.299248,0.00018869,2]
[346418436,1734954640935,-172.617837,0.00018869,2]
[346418437,1734954640944,-184.572137,0.00018869,2]
[346418438,1734954640954,-172.617837,0.00018869,2]
[346418439,1734954640964,-14232.63996313,0.00018878,2]
[346418440,1734954640972,-1500.0,0.00018879,2]
[346418441,1734954640982,-150.0,0.00018886,2]
[346418442,1734954640992,-150.0,0.00018886,2]
[346418443,1734954641003,-150.0,0.00018889,2]
[346418444,1734954641016,-500.0,0.00018889,2]
[346418445,1734954641026,-150.0,0.00018891,2]
[346418446,1734954641036,-1587258.15626649,0.00018891,2]
[346418447,1734954641047,-1028.00137527,0.000189,2]
[346418448,1734954641057,-171.87138211,0.000189,2]
[346418449,1734954641066,-79124.14790343,0.000189,2]
[346418450,1734954641076,-202557.0275,0.000189,2]
[346418451,1734954641088,-5800.0,0.000189,2]
[346418452,1734954641098,-55555.0,0.000189,2]
[346418453,1734954641108,-14232.63996313,0.000189,2]
[346418454,1734954641118,-929.73057511,0.000189,2]
[346418455,1734954641127,-74959.16746761,0.000189,2]
[346418456,1734954641137,-178.68471888,0.000189,2]
[346418457,1734954641146,-202.76853285,0.00018904,2]
[346418458,1734954641155,-150.0,0.00018912,2]
[346418459,1734954641164,-150.0,0.00018931,2]
[346418460,1734954641174,-152.07639963,0.00018932,2]
[346418461,1734954641184,-152.07639964,0.00018932,2]
[346418462,1734954641194,-150.0,0.00018946,2]
[346418463,1734954641204,-150.0,0.00018971,2]
[346418464,1734954641213,-356.05286929,0.00018973,2]
[346418465,1734954641223,-202.76853285,0.00018986,2]
[346418466,1734954641233,-500.0,0.00018995,2]
[346418467,1734954641243,-344.06836914,0.00018995,2]
[346418468,1734954641252,-588.91843229,0.00018995,2]
[346418469,1734954641261,-500.0,0.00018995,2]
[346418470,1734954641271,-37907.4897683,0.00018996,2]
[346418471,1734954641281,-6528.0600459,0.00018996,2]
[346418472,1734954641291,-6396.1005026,0.00018996,2]
[346418473,1734954641301,-2500.3515147,0.00018996,2]
[346418474,1734954641310,-4587.9566707,0.00018996,2]
[346418475,1734954641320,-3177.0017915,0.00018996,2]
[346418476,1734954641330,-506.55627091,0.00018996,2]
[346418477,1734954641339,-3661.9805634,0.00018996,2]
[346418478,1734954641349,-1000.0,0.00018999,2]
[346418479,1734954641358,-1344.2,0.00018999,2]
[346418480,1734954641368,-1052.34,0.00018999,2]
[346418481,1734954641378,-666.0,0.00018999,2]
[346418482,1734954641387,-314.85520476,0.00018999,2]
[346418483,1734954641397,-666.0,0.00018999,2]
[346418484,1734954641406,-300.0,0.00018999,2]
[346418485,1734954641416,-300.0,0.00018999,2]
[346418486,1734954641426,-666.0,0.00018999,2]
[346418487,1734954641435,-377965.00233906,0.00019,2]
[346418488,1734954641444,-354516.50191581,0.00019,2]
[346418489,1734954641454,-336.7140721,0.00019,2]
[346418490,1734954641464,-16629564.14699606,0.00019,2]
[346418491,1734954641475,-10000.0,0.00019,2]
[346418492,1734954641485,-151.0,0.00019,2]
[346418493,1734954641496,-4001.20208222,0.00019,2]
[346418494,1734954641506,-53788.21375652,0.00019,5]
[346418495,1734954641515,-151.0,0.00019,2]
[346418496,1734954641525,-14693.4146989,0.00019,2]
[346418497,1734954641534,-151.0,0.00019,2]
[346418498,1734954641544,-55543.83858585,0.00019,2]
[346418499,1734954641554,-961.61,0.00019,2]
[346418500,1734954641564,-153.14955,0.00019,2]
[346418501,1734954641574,-151.0,0.00019,2]
[346418502,1734954641583,-151.0,0.00019,2]
[346418503,1734954641593,-448179.55891065,0.00019,2]
[346418504,1734954641602,-151.0,0.00019,2]
[346418505,1734954641611,-156.929027,0.00019,2]
[346418506,1734954641621,-151.279847,0.00019,2]
[346418507,1734954641630,-152.00346,0.00019,2]
[346418508,1734954641639,-152.00346,0.00019,2]
[346418509,1734954641649,-152.00346,0.00019,2]
[346418510,1734954641658,-152.00346,0.00019,2]
[346418511,1734954641667,-151.0,0.00019,2]
[346418512,1734954641677,-151.0,0.00019,2]
[346418513,1734954641687,-202.13,0.00019,2]
[346418514,1734954641697,-151.0,0.00019,2]
[346418515,1734954641706,-151.0,0.00019,2]
[346418516,1734954641719,-151.0,0.00019,2]
[346418517,1734954641728,-151.0,0.00019,2]
[346418518,1734954641738,-195.899965,0.00019,2]
[346418519,1734954641748,-195.899965,0.00019,2]
[346418520,1734954641758,-195.899965,0.00019,2]
[346418521,1734954641768,-195.899965,0.00019,2]
[346418522,1734954641777,-151.0,0.00019,2]
[346418523,1734954641787,-151.0,0.00019,2]
[346418524,1734954641796,-151.0,0.00019,2]
[346418525,1734954641805,-151.0,0.00019,2]
[346418526,1734954641814,-151.0,0.00019,2]
[346418527,1734954641824,-151.0,0.00019,2]
[346418528,1734954641833,-2000.0,0.00019,2]
[346418529,1734954641842,-200.0,0.00019,2]
[346418530,1734954641852,-2000.0,0.00019,2]
[346418531,1734954641861,-200.0,0.00019,2]
[346418532,1734954641871,-1827969.59,0.00019,2]
[346418533,1734954641880,-200.0,0.00019,2]
[346418534,1734954641889,-3000.0,0.00019,2]
[346418535,1734954641899,-600.0,0.00019,2]
[346418536,1734954641908,-2000.0,0.00019,2]
[346418537,1734954641918,-200.0,0.00019,2]
[346418538,1734954641927,-203.67,0.00019002,2]
[346418539,1734954641936,-300.0,0.00019004,2]
[346418540,1734954641945,-365.07,0.00019014,2]
[346418541,1734954641954,-436.35,0.00019014,2]
[346418542,1734954641966,-305.25,0.00019014,2]
[346418543,1734954641975,-436.35,0.00019014,2]
[346418544,1734954641984,-435.93,0.00019014,2]
[346418545,1734954641994,-977.37,0.00019014,2]
[346418546,1734954642006,-581.44,0.00019014,2]
[346418547,1734954642015,-977.37,0.00019014,2]
[346418548,1734954642025,-977.37,0.00019014,2]
[346418549,1734954642034,-686.13,0.00019014,2]
[346418550,1734954642044,-150.0,0.00019014,2]
[346418551,1734954642054,-436.21,0.00019014,2]
[346418552,1734954642064,-150.0,0.00019014,2]
[346418553,1734954642074,-165.85,0.00019014,2]
[346418554,1734954642085,-770.7,0.00019014,2]
[346418555,1734954642095,-770.7,0.00019014,2]
[346418556,1734954642104,-770.7,0.00019014,2]
[346418557,1734954642114,-564.07,0.00019014,2]
[346418558,1734954642123,-302.67,0.00019014,2]
[346418559,1734954642132,-300.0,0.00019014,2]
[346418560,1734954642142,-150.0,0.00019029,2]
[346418561,1734954642151,-500.0,0.00019038,2]
[346418562,1734954642161,-2800.0,0.00019038,2]
[346418563,1734954642171,-5259.1481141,0.00019039,7]
[346418564,1734954642180,-253950.301445,0.00019039,7]
[346418565,1734954642191,-151.0,0.00019039,2]
[346418566,1734954642201,-151.0,0.00019039,2]
[346418567,1734954642211,-211.745649,0.00019039,2]
[346418568,1734954642221,-195.899965,0.00019039,2]
[346418569,1734954642231,-195.899965,0.00019039,2]
[346418570,1734954642240,-151.0,0.00019039,2]
[346418571,1734954642250,-151.0,0.00019039,2]
[346418572,1734954642259,-151.0,0.00019039,2]
[346418573,1734954642269,-150.0,0.00019045,2]
[346418574,1734954642279,-150.0,0.00019045,2]
[346418575,1734954642289,-4565.2651081,0.00019062,2]
[346418576,1734954642298,-231.21580398,0.00019068,2]
[346418577,1734954642308,-304.15279927,0.00019068,2]
[346418578,1734954642318,-202.76853285,0.00019068,2]
[346418579,1734954642328,-304.15279928,0.00019068,2]
[346418580,1734954642338,-202.76853285,0.00019068,2]
[346418581,1734954642348,-150.0,0.0001907,2]
[346418582,1734954642359,-150.0,0.00019071,2]
[346418583,1734954642369,-220.0,0.00019078,2]
[346418584,1734954642379,-150.0,0.00019093,2]
[346418585,1734954642390,-152.07639963,0.00019096,2]
[346418586,1734954642400,-152.07639964,0.00019096,2]
[346418587,1734954642410,-150.0,0.00019096,2]
[346418588,1734954642419,-150.0,0.00019097,2]
[346418589,1734954642429,-1005.1345,0.00019099,2]
[346418590,1734954642439,-91580.46141646,0.000191,2]
[346418591,1734954642449,-151.0,0.000191,2]
[346418592,1734954642459,-152.00346,0.000191,2]
[346418593,1734954642470,-152.00346,0.000191,2]
[346418594,1734954642480,-185.49956906,0.000191,2]
[346418595,1734954642490,-185.49956893,0.000191,2]
[346418596,1734954642499,-185.49956893,0.000191,2]
[346418597,1734954642508,-185.49956893,0.000191,2]
[346418598,1734954642518,-185.49956893,0.000191,2]
[346418599,1734954642527,-185.49956893,0.000191,2]
[346418600,1734954642537,-185.49956893,0.000191,2]
[346418601,1734954642546,-185.49956893,0.000191,2]
[346418602,1734954642555,-185.49956893,0.000191,2]
[346418603,1734954642565,-185.49956893,0.000191,2]
[346418604,1734954642574,-185.49956893,0.000191,2]
[346418605,1734954642583,-185.49956893,0.000191,2]
[346418606,1734954642592,-185.49956893,0.000191,2]
[346418607,1734954642601,-185.49956893,0.000191,2]
[346418608,1734954642611,-185.49956893,0.000191,2]
[346418609,1734954642620,-185.49956893,0.000191,2]
[346418610,1734954642630,-185.49956893,0.000191,2]
[346418611,1734954642639,-185.49956893,0.000191,2]
[346418612,1734954642649,-185.49956893,0.000191,2]
[346418613,1734954642658,-185.49956893,0.000191,2]
[346418614,1734954642668,-182.482872,0.00019105,2]
[346418615,1734954642677,-1706.0,0.0001911,2]
[346418616,1734954642687,-298.4170667,0.00019111,2]
[346418617,1734954642697,-1500.0,0.00019116,2]
[346418618,1734954642706,-150.0,0.00019122,2]
[346418619,1734954642715,-1052.34,0.00019136,2]
[346418620,1734954642724,-150.0,0.00019139,2]
[346418621,1734954642733,-231.21580398,0.00019151,2]
[346418622,1734954642742,-304.15279927,0.00019151,2]
[346418623,1734954642751,-202.76853285,0.00019151,2]
[346418624,1734954642761,-304.15279928,0.00019151,2]
[346418625,1734954642770,-202.76853285,0.00019151,2]
[346418626,1734954642779,-150.0,0.00019154,2]
[346418627,1734954642788,-150.0,0.00019165,2]
[346418628,1734954642797,-35539.373166,0.00019168,2]
[346418629,1734954642807,-500.0,0.00019173,2]
[346418630,1734954642816,-500.0,0.00019173,2]
[346418631,1734954642825,-529.77697183,0.00019173,2]
[346418632,1734954642834,-501.37204797,0.00019173,2]
[346418633,1734954642844,-300.72769051,0.00019173,2]
[346418634,1734954642853,-500.0,0.00019173,2]
[346418635,1734954642862,-500.0,0.00019173,2]
[346418636,1734954642872,-500.0,0.00019173,2]
[346418637,1734954642882,-500.0,0.00019173,2]
[346418638,1734954642891,-503.65443104,0.00019173,2]
[346418639,1734954642901,-218.0,0.00019177,2]
[346418640,1734954642910,-150.0,0.00019177,2]
[346418641,1734954642920,-150.0,0.00019177,2]
[346418642,1734954642929,-300.0,0.00019177,2]
[346418643,1734954642938,-666.0,0.00019177,2]
[346418644,1734954642947,-150.800475,0.00019178,2]
[346418645,1734954642957,-156.651929,0.00019178,2]
[346418646,1734954642966,-151.0,0.00019178,2]
[346418647,1734954642975,-151.0,0.00019178,2]
[346418648,1734954642985,-244.925794,0.00019178,2]
[346418649,1734954642995,-151.0,0.00019178,2]
[346418650,1734954643008,-151.0,0.00019178,2]
[346418651,1734954643018,-151.0,0.00019178,2]
[346418652,1734954643027,-151.0,0.00019178,2]
[346418653,1734954643036,-151.0,0.00019178,2]
[346418654,1734954643046,-151.0,0.00019178,2]
[346418655,1734954643056,-151.0,0.00019178,2]
[346418656,1734954643066,-152.00346,0.00019178,2]
[346418657,1734954643075,-152.00346,0.00019178,2]
[346418658,1734954643085,-197.81417468,0.00019178,2]
[346418659,1734954643094,-500.0,0.00019178,2]
[346418660,1734954643311,-500.0,0.00019178,2]
[346418661,1734954643333,-500.0,0.00019178,2]
[346418662,1734954643343,-500.0,0.00019178,2]
[346418663,1734954643352,-390.93312809,0.00019178,2]
[346418664,1734954643362,-151.0,0.00019178,2]
[346418665,1734954643372,-217.609615,0.00019178,2]
[346418666,1734954643382,-500.0,0.00019178,2]
[346418667,1734954643391,-500.0,0.00019178,2]
[346418668,1734954643402,-500.0,0.00019178,2]
[346418669,1734954643411,-500.0,0.00019178,2]
[346418670,1734954643421,-528.92557614,0.00019178,2]
[346418671,1734954643431,-500.0,0.00019178,2]
[346418673,1734954643440,-500.0,0.00019178,2]
[346418676,1734954643450,-500.0,0.00019178,2]
[346418679,1734954643460,-500.0,0.00019178,2]
[346418682,1734954643469,-500.0,0.00019178,2]
[346418686,1734954643478,-500.0,0.00019178,2]
[346418689,1734954643488,-151.0,0.00019178,2]
[346418690,1734954643498,-151.0,0.00019178,2]
[346418691,1734954643508,-504.01767841,0.00019178,2]
[346418692,1734954643518,-195.899965,0.00019178,2]
[346418693,1734954643528,-195.899965,0.00019178,2]
[346418694,1734954643537,-500.0,0.00019178,2]
[346418695,1734954643546,-195.899965,0.00019178,2]
[346418696,1734954643556,-195.899965,0.00019178,2]
[346418697,1734954643565,-500.0,0.00019178,2]
[346418698,1734954643575,-151.0,0.00019178,2]
[346418699,1734954643584,-569.86,0.00019178,2]
[346418700,1734954643593,-151.0,0.00019178,2]
[346418701,1734954643603,-151.0,0.00019178,2]
[346418702,1734954643612,-151.0,0.00019178,2]
[346418703,1734954643621,-150.0,0.00019178,2]
[346418704,1734954643631,-500.0,0.00019178,2]
[346418705,1734954643641,-154.151086,0.00019178,2]
[346418706,1734954643651,-500.0,0.00019178,2]
[346418707,1734954643660,-500.0,0.00019178,2]
[346418708,1734954643671,-500.0,0.00019178,2]
[346418709,1734954643681,-5000.0,0.00019178,2]
[346418710,1734954643691,-957.85,0.00019178,2]
[346418711,1734954643701,-500.0,0.00019178,2]
[346418712,1734954643710,-500.0,0.00019178,2]
[346418713,1734954643721,-500.0,0.00019178,2]
[346418714,1734954643730,-500.0,0.00019178,2]
[346418715,1734954643739,-500.0,0.00019178,2]
[346418716,1734954643749,-500.0,0.00019178,2]
[346418717,1734954643758,-512.16987388,0.00019178,2]
[346418718,1734954643768,-500.0,0.00019178,2]
[346418719,1734954643777,-500.0,0.00019178,2]
[346418720,1734954643786,-971.31,0.00019178,2]
[346418721,1734954643796,-500.0,0.00019178,2]
[346418722,1734954643806,-506.75699164,0.00019178,2]
[346418723,1734954643815,-500.0,0.00019178,2]
[346418724,1734954643825,-747.84,0.00019178,2]
[346418725,1734954643835,-504.80707198,0.00019178,2]
[346418726,1734954643844,-500.0,0.00019178,2]
[346418727,1734954643854,-500.0,0.00019178,2]
[346418728,1734954643863,-500.0,0.00019178,2]
[346418729,1734954643872,-500.0,0.00019178,2]
[346418730,1734954643882,-500.0,0.00019178,2]
[346418731,1734954643892,-1103.1,0.00019178,2]
[346418732,1734954643901,-500.0,0.00019178,2]
[346418733,1734954643912,-508.90561489,0.00019178,2]
[346418734,1734954643922,-500.0,0.00019178,2]
[346418735,1734954643932,-410.81926677,0.00019178,2]
[346418736,1734954643941,-500.0,0.00019178,2]
[346418737,1734954643951,-578.42,0.00019178,2]
[346418738,1734954643960,-525.70088984,0.00019178,2]
[346418739,1734954643971,-1058.94,0.00019178,2]
[346418740,1734954643981,-500.0,0.00019178,2]
[346418741,1734954643990,-443.13009904,0.00019178,2]
[346418742,1734954644001,-500.0,0.00019178,2]
[346418743,1734954644013,-500.0,0.00019178,2]
[346418744,1734954644023,-500.0,0.00019178,2]
[346418745,1734954644032,-500.0,0.00019178,2]
[346418746,1734954644042,-500.0,0.00019178,2]
[346418747,1734954644051,-500.0,0.00019178,2]
[346418748,1734954644061,-500.0,0.00019178,2]
[346418749,1734954644071,-887.42,0.00019178,2]
[346418750,1734954644081,-500.0,0.00019178,2]
[346418751,1734954644090,-515.51,0.00019178,2]
[346418752,1734954644100,-500.0,0.00019178,2]
[346418753,1734954644110,-500.0,0.00019178,2]
[346418754,1734954644120,-500.0,0.00019178,2]
[346418755,1734954644129,-500.0,0.00019178,2]
[346418756,1734954644139,-500.0,0.00019178,2]
[346418757,1734954644148,-500.0,0.00019178,2]
[346418758,1734954644158,-500.0,0.00019178,2]
[346418759,1734954644167,-500.0,0.00019178,2]
[346418760,1734954644176,-500.0,0.00019178,2]
[346418761,1734954644186,-500.0,0.00019178,2]
[346418762,1734954644196,-1284.56,0.00019178,2]
[346418763,1734954644206,-757.51,0.00019178,2]
[346418764,1734954644216,-500.0,0.00019178,2]
[346418765,1734954644227,-500.0,0.00019178,2]
[346418766,1734954644236,-500.0,0.00019178,2]
[346418767,1734954644246,-500.0,0.00019178,2]
[346418768,1734954644255,-254.79506545,0.00019178,2]
[346418769,1734954644265,-500.0,0.00019178,2]
[346418770,1734954644274,-500.0,0.00019178,2]
[346418771,1734954644284,-523.83419459,0.00019178,2]
[346418772,1734954644293,-500.0,0.00019178,2]
[346418773,1734954644303,-500.0,0.00019178,2]
[346418774,1734954644312,-500.0,0.00019178,2]
[346418775,1734954644322,-500.0,0.00019178,2]
[346418776,1734954644332,-500.0,0.00019178,2]
[346418777,1734954644342,-500.0,0.00019178,2]
[346418778,1734954644351,-500.0,0.00019178,2]
[346418779,1734954644361,-500.0,0.00019178,2]
[346418780,1734954644370,-500.0,0.00019178,2]
[346418781,1734954644379,-500.0,0.00019178,2]
[346418782,1734954644389,-500.0,0.00019178,2]
[346418783,1734954644399,-500.0,0.00019178,2]
[346418784,1734954644409,-500.0,0.00019178,2]
[346418785,1734954644419,-500.0,0.00019178,2]
[346418786,1734954644428,-501.98236884,0.00019178,2]
[346418787,1734954644438,-500.0,0.00019178,2]
[346418788,1734954644447,-500.0,0.00019178,2]
[346418789,1734954644457,-500.0,0.00019178,2]
[346418790,1734954644468,-500.0,0.00019178,2]
[346418791,1734954644477,-712.78,0.00019178,2]
[346418792,1734954644487,-500.0,0.00019178,2]
[346418793,1734954644496,-500.0,0.00019178,2]
[346418794,1734954644506,-500.0,0.00019178,2]
[346418795,1734954644516,-500.0,0.00019178,2]
[346418796,1734954644526,-500.0,0.00019178,2]
[346418797,1734954644535,-500.0,0.00019178,2]
[346418798,1734954644544,-587.44,0.00019178,2]
[346418799,1734954644554,-500.0,0.00019178,2]
[346418800,1734954644563,-500.0,0.00019178,2]
[346418801,1734954644573,-500.0,0.00019178,2]
[346418802,1734954644583,-500.0,0.00019178,2]
[346418803,1734954644592,-500.0,0.00019178,2]
[346418804,1734954644602,-500.0,0.00019178,2]
[346418805,1734954644611,-500.0,0.00019178,2]
[346418806,1734954644621,-611.7,0.00019178,2]
[346418807,1734954644631,-874.49,0.00019178,2]
[346418808,1734954644641,-500.0,0.00019178,2]
[346418809,1734954644650,-500.0,0.00019178,2]
[346418810,1734954644660,-500.0,0.00019178,2]
[346418811,1734954644670,-644.23,0.00019178,2]
[346418812,1734954644679,-1366.88,0.00019178,2]
[346418813,1734954644689,-393.03619184,0.00019178,2]
[346418814,1734954644698,-500.0,0.00019178,2]
[346418815,1734954644708,-504.17916388,0.00019178,2]
[346418816,1734954644718,-500.0,0.00019178,2]
[346418817,1734954644727,-500.0,0.00019178,2]
[346418818,1734954644737,-500.0,0.00019178,2]
[346418819,1734954644747,-500.0,0.00019178,2]
[346418820,1734954644757,-500.0,0.00019178,2]
[346418821,1734954644766,-572.32,0.00019178,2]
[346418822,1734954644776,-500.0,0.00019178,2]
[346418823,1734954644785,-921.58,0.00019178,2]
[346418824,1734954644794,-500.0,0.00019178,2]
[346418825,1734954644804,-500.0,0.00019178,2]
[346418826,1734954644813,-681.8,0.00019178,2]
[346418827,1734954644823,-500.0,0.00019178,2]
[346418828,1734954644833,-724.85,0.00019178,2]
[346418829,1734954644843,-500.0,0.00019178,2]
[346418830,1734954644853,-502.15954209,0.00019178,2]
[346418831,1734954644863,-780.56,0.00019178,2]
[346418832,1734954644872,-1387.19,0.00019178,2]
[346418833,1734954644882,-500.0,0.00019178,2]
[346418834,1734954644892,-500.0,0.00019178,2]
[346418835,1734954644901,-500.0,0.00019178,2]
[346418836,1734954644911,-615.92,0.00019178,2]
[346418837,1734954644920,-500.0,0.00019178,2]
[346418838,1734954644930,-500.0,0.00019178,2]
[346418839,1734954644939,-500.0,0.00019178,2]
[346418840,1734954644949,-500.0,0.00019178,2]
[346418841,1734954644958,-612.79,0.00019178,2]
[346418842,1734954644968,-845.85,0.00019178,2]
[346418843,1734954644977,-500.0,0.00019178,2]
[346418844,1734954644986,-500.0,0.00019178,2]
[346418845,1734954644995,-502.71613647,0.00019178,2]
[346418846,1734954645009,-781.0,0.00019178,2]
[346418847,1734954645019,-500.0,0.00019178,2]
[346418848,1734954645028,-1397.77,0.00019178,2]
[346418849,1734954645037,-1333.95,0.00019178,2]
[346418850,1734954645047,-174.77224312,0.00019178,2]
[346418851,1734954645056,-500.0,0.00019178,2]
[346418852,1734954645065,-500.0,0.00019178,2]
[346418853,1734954645075,-500.0,0.00019178,2]
[346418854,1734954645084,-163.73288107,0.00019178,2]
[346418855,1734954645094,-505.1,0.00019178,2]
[346418856,1734954645103,-500.0,0.00019178,2]
[346418857,1734954645112,-502.28118489,0.00019178,2]
[346418858,1734954645122,-567.58069889,0.00019178,2]
[346418859,1734954645132,-500.0,0.00019178,2]
[346418860,1734954645141,-653.13,0.00019178,2]
[346418861,1734954645151,-500.0,0.00019178,2]
[346418862,1734954645161,-577.79,0.00019178,2]
[346418863,1734954645171,-512.96,0.00019178,2]
[346418864,1734954645180,-500.0,0.00019178,2]
[346418865,1734954645190,-500.0,0.00019178,2]
[346418866,1734954645199,-500.0,0.00019178,2]
[346418867,1734954645209,-500.0,0.00019178,2]
[346418868,1734954645218,-1242.25,0.00019178,2]
[346418869,1734954645228,-500.0,0.00019178,2]
[346418870,1734954645237,-500.0,0.00019178,2]
[346418871,1734954645247,-500.0,0.00019178,2]
[346418872,1734954645256,-500.0,0.00019178,2]
[346418873,1734954645266,-500.0,0.00019178,2]
[346418874,1734954645276,-500.0,0.00019178,2]
[346418875,1734954645286,-500.0,0.00019178,2]
[346418876,1734954645296,-200.0,0.00019178,2]
[346418877,1734954645306,-500.0,0.00019178,2]
[346418878,1734954645316,-500.0,0.00019178,2]
[346418879,1734954645325,-500.0,0.00019178,2]
[346418880,1734954645334,-530.15,0.00019178,2]
[346418881,1734954645344,-500.0,0.00019178,2]
[346418882,1734954645354,-500.0,0.00019178,2]
[346418883,1734954645363,-500.0,0.00019178,2]
[346418884,1734954645372,-812.31,0.00019178,2]
[346418885,1734954645382,-510.63,0.00019178,2]
[346418886,1734954645392,-500.0,0.00019178,2]
[346418887,1734954645402,-500.0,0.00019178,2]
[346418888,1734954645411,-504.92537038,0.00019178,2]
[346418889,1734954645420,-500.0,0.00019178,2]
[346418890,1734954645430,-625.46,0.00019178,2]
[346418891,1734954645440,-500.0,0.00019178,2]
[346418892,1734954645449,-500.0,0.00019178,2]
[346418893,1734954645458,-500.0,0.00019178,2]
[346418894,1734954645468,-500.0,0.00019178,2]
[346418895,1734954645478,-500.0,0.00019178,2]
[346418896,1734954645488,-500.0,0.00019178,2]
[346418897,1734954645497,-500.0,0.00019178,2]
[346418898,1734954645506,-500.0,0.00019178,2]
[346418899,1734954645515,-500.0,0.00019178,2]
[346418900,1734954645524,-500.0,0.00019178,2]
[346418901,1734954645533,-500.0,0.00019178,2]
[346418902,1734954645542,-500.0,0.00019178,2]
[346418903,1734954645551,-500.0,0.00019178,2]
[346418904,1734954645560,-500.0,0.00019178,2]
[346418905,1734954645569,-500.0,0.00019178,2]
[346418906,1734954645579,-500.0,0.00019178,2]
[346418907,1734954645588,-748.45,0.00019178,2]
[346418908,1734954645597,-829.76,0.00019178,2]
[346418909,1734954645606,-500.0,0.00019178,2]
[346418910,1734954645615,-500.0,0.00019178,2]
[346418911,1734954645624,-500.0,0.00019178,2]
[346418912,1734954645634,-500.0,0.00019178,2]
[346418913,1734954645643,-500.0,0.00019178,2]
[346418914,1734954645653,-500.0,0.00019178,2]
[346418915,1734954645662,-855.21,0.00019178,2]
[346418916,1734954645672,-1661.27,0.00019178,2]
[346418917,1734954645681,-500.0,0.00019178,2]
[346418918,1734954645691,-500.0,0.00019178,2]
[346418919,1734954645700,-500.0,0.00019178,2]